bitfinex-derivatives/quotes_SOLF0:USTF0_20241016
["timestamp","ask_amount","ask_price","bid_price","bid_amount"]
[1729091326421,3.2391,154.39,154.34,24.6557]
[1729091326621,3.2391,154.39,154.34,24.5820597]
[1729091327323,5.96,154.44,154.36,18.66]
[1729091327527,5.96,154.44,154.36,24.62]
[1729091327725,5.96,154.44,154.36,5.96]
[1729091327923,3.239,154.39,154.36,9.1996]
[1729091328127,5.96,154.44,154.36,5.96]
[1729091328831,3.2392,154.39,154.36,5.96]
[1729091329020,5.96,154.44,154.36,5.96]
[1729091330123,3.2387,154.41,154.38,3.2392]
[1729091330325,7.2906,154.46,154.37,18.66]
[1729091330529,3.2381,154.44,154.37,3.2393]
[1729091330824,18.66,154.42,154.34,11.8820597]
[1729091331229,18.66,154.42,154.35,3.2398]
[1729091331526,18.66,154.45,154.35,18.66]
[1729091331830,3.2386,154.41,154.38,3.239]
[1729091332327,7.2906,154.46,154.37,18.66]
[1729091332625,7.2906,154.46,154.39,3.2389]
[1729091332626,3.2385,154.42,154.39,3.2389]
[1729091333127,1.3306,154.46,154.38,5.96]
[1729091333631,3.2384,154.42,154.39,3.2389]
[1729091334128,1.3306,154.46,154.38,5.96]
[1729091334330,1.3306,154.46,154.38,9.199]
[1729091334630,1.3306,154.46,154.38,3.239]
[1729091334829,1.3306,154.46,154.37,21.8993]
[1729091335326,1.3306,154.46,154.37,18.66]
[1729091335525,18.66,154.44,154.35,7.4094]
[1729091335724,24.62,154.44,154.35,7.4094]
[1729091336131,3.2389,154.4,154.37,3.2394]
[1729091336425,5.96,154.44,154.36,18.66]
[1729091336630,3.2384,154.43,154.36,18.66]
[1729091336822,5.96,154.44,154.36,18.66]
[1729091337023,3.2382,154.43,154.4,3.2387]
[1729091337219,5.96,154.44,154.36,18.66]
[1729091337631,5.96,154.47,154.38,18.66]
[1729091338336,5.96,154.47,154.4,18.66]
[1729091338631,3.2383,154.43,154.41,1.3419]
[1729091339734,5.96,154.47,154.41,1.3419]
[1729091339735,3.2379,154.44,154.41,1.3419]
[1729091339934,20.0481,154.5,154.41,20.0019]
[1729091340134,25.9681,154.5,154.41,20.0019]
[1729091340433,25.9681,154.5,154.43,3.2381]
[1729091340929,25.9681,154.5,154.35,20.1094]
[1729091340930,18.66,154.46,154.36,18.66]
[1729091341133,18.66,154.44,154.36,7.2717]
[1729091342139,1.443,154.45,154.36,7.2717]
[1729091342741,3.2387,154.41,154.38,3.2391]
[1729091343439,3.2385,154.42,154.39,3.239]
[1729091343938,3.2385,154.42,154.36,25.9317]
[1729091343939,3.2386,154.41,154.38,3.2391]
[1729091344555,1.443,154.45,154.36,7.2717]
[1729091344732,18.66,154.44,154.36,7.2717]
[1729091345143,20.103,154.45,154.36,7.2717]
[1729091345838,3.2387,154.41,154.38,3.239]
[1729091346046,20.103,154.45,154.38,3.239]
[1729091346453,3.2388,154.4,154.38,3.239]
[1729091346759,20.103,154.45,154.37,3.2393]
[1729091346958,3.2394,154.37,154.36,7.2717]
[1729091347253,1.443,154.45,154.36,10.5111]
[1729091347447,3.2388,154.4,154.36,7.2717]
[1729091347856,3.2388,154.4,154.37,3.2394]
[1729091348356,20.0481,154.5,154.39,18.66]
[1729091348561,1.3818,154.53,154.44,18.66]
[1729091348853,3.2367,154.5,154.47,3.2372]
[1729091349250,18.66,154.57,154.48,18.66]
[1729091349450,3.2357,154.55,154.5,18.66]
[1729091349966,3.2357,154.55,154.51,3.2363]
[1729091350148,20.0418,154.59,154.5,18.66]
[1729091350463,5.92,154.62,154.53,3.2359]
[1729091350660,5.92,154.62,154.54,1.3476]
[1729091350864,18.66,154.61,154.54,1.3476]
[1729091351859,5.92,154.62,154.54,1.3476]
[1729091352060,3.2354,154.57,154.54,1.3476]
[1729091352261,5.92,154.62,154.54,1.3476]
[1729091352554,29.83,154.61,154.53,3.22417564]
[1729091352756,29.83,154.61,154.51,7.3132]
[1729091353057,3.2357,154.55,154.51,10.5496]
[1729091353853,29.83,154.61,154.51,7.3132]
[1729091354062,5.92,154.62,154.53,3.236]
[1729091354261,5.92,154.62,154.54,3.15775071]
[1729091354758,5.92,154.62,154.52,3.16810505]
[1729091355161,29.83,154.61,154.51,7.3132]
[1729091355460,29.83,154.59,154.51,1.3932]
[1729091355664,5.92,154.58,154.51,1.3932]
[1729091356163,3.2363,154.52,154.51,1.3932]
[1729091356756,7.3714,154.58,154.46,1.4278]
[1729091356953,1.3154,154.57,154.46,8.6684]
[1729091357754,3.2363,154.52,154.49,3.2368]
[1729091359762,3.2363,154.52,154.46,8.6684]
[1729091359962,3.2363,154.52,154.48,3.237]
[1729091361167,1.3154,154.57,154.46,38.4984]
[1729091361357,1.4514,154.58,154.5,3.2367]
[1729091361563,1.4514,154.58,154.5,9.1567]
[1729091361763,1.4525,154.61,154.51,29.83]
[1729091361968,3.2351,154.58,154.54,3.2357]
[1729091362158,3.2351,154.58,154.55,1.3917]
[1729091363073,5.92,154.63,154.56,3.2354]
[1729091363866,5.92,154.63,154.55,4.6272]
[1729091364368,5.92,154.63,154.57,3.2351]
[1729091364557,35.75,154.66,154.57,3.2351]
[1729091364963,3.2347,154.6,154.57,3.2351]
[1729091365668,3.2348,154.59,154.57,3.2351]
[1729091366858,39.03568741,154.66,154.55,1.3917]
[1729091367059,35.75,154.66,154.55,1.3917]
[1729091367462,3.2349,154.59,154.56,3.2353]
[1729091367764,5.92,154.66,154.55,1.3917]
[1729091368466,3.2345,154.61,154.58,3.2349]
[1729091368664,3.2345,154.61,154.58,9.1549]
[1729091368857,5.92,154.66,154.58,5.92]
[1729091369068,15.1908,154.67,154.58,9.155]
[1729091369768,3.2345,154.61,154.58,9.155]
[1729091370474,15.1908,154.67,154.58,5.92]
[1729091370662,3.2348,154.59,154.58,5.92]
[1729091371860,5.88,154.63,154.54,3.16341572]
[1729091372059,29.83,154.64,154.52,7.2641]
[1729091372060,5.88,154.62,154.52,7.2641]
[1729091372268,29.83,154.59,154.47,32.5552]
[1729091372471,29.83,154.59,154.47,33.9797]
[1729091372672,8.6373,154.58,154.48,5.88]
[1729091372866,3.2356,154.55,154.49,3.2369]
[1729091373067,8.6373,154.58,154.49,3.2369]
[1729091373271,8.6373,154.58,154.48,5.88]
[1729091374467,3.2366,154.51,154.48,9.1171]
[1729091374669,8.6373,154.58,154.48,5.88]
[1729091375164,7.2272,154.58,154.5,29.83]
[1729091375375,35.71,154.61,154.5,29.83]
[1729091375566,1.4409,154.62,154.55,3.2356]
[1729091375567,3.2348,154.59,154.55,3.2356]
[1729091375764,1.4409,154.62,154.55,3.2356]
[1729091376071,5.88,154.63,154.55,29.83]
[1729091376264,3.2345,154.61,154.58,3.2349]
[1729091377071,1.3657,154.67,154.57,35.71]
[1729091377275,7.2457,154.67,154.57,35.71]
[1729091378171,3.2342,154.62,154.59,3.2347]
[1729091383567,3.2344,154.61,154.58,3.2349]
[1729091383772,7.2457,154.67,154.57,35.71]
[1729091383973,7.2457,154.67,154.57,5.88]
[1729091384181,3.2347,154.6,154.57,9.1152]
[1729091384476,13.712,154.67,154.56,7.3098]
[1729091384672,29.83,154.66,154.56,7.3098]
[1729091385173,3.2349,154.59,154.56,10.5452]
[1729091386184,3.2344,154.62,154.58,3.2349]
[1729091386382,3.2344,154.62,154.57,29.83]
[1729091386680,3.2344,154.62,154.59,3.2347]
[1729091386871,1.3657,154.67,154.57,29.83]
[1729091387581,3.2344,154.61,154.58,3.2349]
[1729091388178,3.2343,154.62,154.59,3.2347]
[1729091388480,1.3657,154.67,154.57,29.83]
[1729091388968,3.2339,154.64,154.6,3.2344]
[1729091389173,9.694,154.76,154.62,29.83]
[1729091389371,2.7861,154.75,154.65,29.83]
[1729091389580,2.7861,154.75,154.68,3.2329]
[1729091389581,1.4127,154.75,154.68,3.2329]
[1729091389775,1.4127,154.75,154.68,29.83]
[1729091389975,5.88,154.78,154.68,29.83]
[1729091390173,3.2316,154.75,154.68,29.83]
[1729091390371,2.701,154.79,154.7,29.83]
[1729091390580,2.701,154.79,154.71,7.2909]
[1729091390581,1.3276,154.79,154.71,7.2909]
[1729091390780,3.2309,154.78,154.74,3.2317]
[1729091391274,1.3276,154.79,154.71,11.8616]
[1729091391480,1.3276,154.79,154.71,8.6294]
[1729091391877,3.2314,154.76,154.71,8.6294]
[1729091392075,1.3276,154.79,154.71,8.6294]
[1729091392576,1.3276,154.79,154.71,7.2909]
[1729091393175,3.2316,154.75,154.71,7.2909]
[1729091393384,1.3276,154.79,154.71,7.2909]
[1729091393769,3.2316,154.75,154.71,7.2909]
[1729091394785,3.2316,154.75,154.71,10.5232]
[1729091395879,1.3276,154.79,154.71,7.2909]
[1729091396481,1.3276,154.79,154.72,29.83]
[1729091396687,5.88,154.81,154.72,29.83]
[1729091397182,3.231,154.77,154.73,3.2317]
[1729091397382,3.231,154.77,154.73,6.39743802]
[1729091398079,3.2315,154.75,154.73,3.16573802]
[1729091398280,3.2315,154.75,154.72,3.2321]
[1729091398684,3.2316,154.75,154.71,10.5232]
[1729091398886,5.88,154.81,154.71,7.2909]
[1729091399180,3.2318,154.74,154.71,7.2909]
[1729091399385,5.88,154.81,154.71,7.2909]
[1729091399785,3.232,154.73,154.71,7.2909]
[1729091400482,3.232,154.73,154.71,1.4109]
[1729091400780,35.71,154.81,154.71,1.4109]
[1729091401177,3.2314,154.76,154.72,29.83]
[1729091401687,5.88,154.81,154.74,3.2316]
[1729091401888,5.88,154.81,154.74,6.52509292]
[1729091402094,1.348,154.83,154.75,29.83]
[1729091402294,182.86556865,154.88,154.79,3.2305]
[1729091402482,3.2301,154.82,154.8,3.23985613]
[1729091402880,3.2302,154.81,154.8,3.23985613]
[1729091403088,1.3181,154.87,154.78,35.61]
[1729091403596,3.2304,154.81,154.78,38.8408]
[1729091403789,3.2304,154.81,154.78,42.09810424]
[1729091403995,1.3181,154.87,154.78,38.86730424]
[1729091404197,3.2303,154.81,154.78,42.09800424]
[1729091404387,1.3181,154.87,154.78,38.86730424]
[1729091404989,1.3181,154.87,154.79,1.4412]
[1729091405597,3.2299,154.83,154.8,3.2304]
[1729091406196,1.3181,154.87,154.79,1.4412]
[1729091406901,1.3181,154.87,154.8,3.2303]
[1729091407896,1.3181,154.87,154.79,1.4412]
[1729091408405,1.3181,154.87,154.8,5.78]
[1729091408590,3.2299,154.83,154.8,5.78]
[1729091408794,1.3181,154.87,154.8,5.78]
[1729091410010,3.2301,154.82,154.8,9.0103]
[1729091410211,1.3181,154.87,154.8,5.78]
[1729091410411,3.2299,154.83,154.8,9.0103]
[1729091411408,3.2294,154.85,154.82,3.23]
[1729091411807,8.6512,154.92,154.8,29.83]
[1729091412008,8.6512,154.92,154.83,3.2297]
[1729091412208,2.8712,154.92,154.83,3.2297]
[1729091412414,3.2292,154.86,154.83,3.2297]
[1729091412612,2.8712,154.92,154.81,5.78]
[1729091412807,8.6512,154.92,154.82,3.2299]
[1729091413014,8.6512,154.92,154.81,5.78]
[1729091413311,2.8712,154.92,154.81,5.78]
[1729091413512,2.8712,154.92,154.83,29.83]
[1729091413716,3.2288,154.88,154.85,3.2293]
[1729091413910,3.2288,154.88,154.85,9.0093]
[1729091414511,1.4398,154.92,154.83,29.83]
[1729091414715,1.4398,154.92,154.8,29.83]
[1729091414919,1.4398,154.92,154.81,5.78]
[1729091415314,1.4398,154.92,154.82,3.2299]
[1729091415516,1.4398,154.92,154.81,5.78]
[1729091415714,3.2296,154.85,154.82,3.2299]
[1729091416221,3.2291,154.87,154.84,3.2295]
[1729091416516,1.4398,154.92,154.81,5.78]
[1729091416717,3.2296,154.85,154.82,3.2299]
[1729091417020,1.4398,154.92,154.81,5.78]
[1729091417919,3.2297,154.84,154.81,9.0101]
[1729091420014,3.2295,154.85,154.82,3.23]
[1729091420215,1.4398,154.92,154.81,5.78]
[1729091420714,200.36559734,154.96,154.83,29.83]
[1729091420924,5.78,154.95,154.84,1.3394]
[1729091421212,5.78,154.95,154.85,5.78]
[1729091421914,3.2291,154.87,154.85,5.78]
[1729091422422,3.2291,154.87,154.86,3.21345247]
[1729091424321,18.6,154.92,154.86,3.21345247]
[1729091424520,3.2289,154.88,154.85,5.78]
[1729091424727,18.6,154.94,154.85,5.78]
[1729091425213,18.6,154.92,154.82,18.6]
[1729091425520,3.2296,154.85,154.82,27.61]
[1729091426223,5.78,154.91,154.8,20.0257]
[1729091426417,18.6,154.9,154.81,5.78]
[1729091426721,3.23,154.82,154.81,5.78]
[1729091427822,3.2299,154.83,154.81,5.78]
[1729091428217,1.3549,154.89,154.79,1.4412]
[1729091428424,1.3549,154.89,154.79,7.2212]
[1729091429024,1.3549,154.89,154.79,10.4517]
[1729091429629,1.3549,154.89,154.8,3.2303]
[1729091430422,3.2302,154.82,154.79,4.6717]
[1729091430727,1.3549,154.89,154.8,29.77]
[1729091430930,1.3549,154.89,154.8,31.1589]
[1729091431121,1.3549,154.89,154.8,32.5034]
[1729091431721,5.78,154.91,154.83,29.77]
[1729091432030,2.6951,154.95,154.85,3.2292]
[1729091432223,5.82,154.94,154.83,35.59]
[1729091432629,3.2287,154.89,154.86,3.229]
[1729091432829,3.2287,154.89,154.86,6.48988974]
[1729091433235,3.2287,154.89,154.87,3.2289]
[1729091433532,100.73559734,154.96,154.88,29.77]
[1729091433730,100.73559734,154.96,154.88,33.01667685]
[1729091433926,5.82,154.97,154.9,3.2283]
[1729091435029,3.2278,154.93,154.9,3.2283]
[1729091435431,3.2277,154.93,154.9,3.2281]
[1729091435736,7.2488,154.99,154.88,34.32807685]
[1729091435940,3.2271,154.96,154.9,3.2282]
[1729091436237,7.2488,154.99,154.88,34.32807685]
[1729091436435,7.2488,154.99,154.88,35.66107685]
[1729091436638,3.2275,154.95,154.91,3.2279]
[1729091437236,3.2275,154.95,154.88,35.66107685]
[1729091437433,3.2275,154.95,154.92,3.2279]
[1729091437931,1.4288,154.99,154.91,5.82]
[1729091438152,1.4288,154.99,154.93,3.2276]
[1729091438631,3.2272,154.96,154.93,3.2276]
[1729091438825,1.4288,154.99,154.93,3.2276]
[1729091439337,69.74,155.04,154.95,3.2272]
[1729091439526,2.7559,155.03,154.93,29.77]
[1729091439734,2.7559,155.03,154.94,1.4372]
[1729091439931,3.2261,155.01,154.96,3.227]
[1729091440231,2.7559,155.03,154.96,3.227]
[1729091440632,2.7559,155.03,154.96,3.25870155]
[1729091440827,2.7559,155.03,154.95,5.82]
[1729091441231,29.77,155.02,154.94,1.4372]
[1729091442442,3.2273,154.95,154.94,1.4372]
[1729091442638,35.59,155.0,154.91,5.82]
[1729091442835,35.59,155.0,154.89,5.82]
[1729091443137,3.2281,154.91,154.88,38.88967685]
[1729091443437,35.59,155.0,154.88,41.48107685]
[1729091443634,3.2278,154.93,154.9,3.2283]
[1729091443838,35.59,155.0,154.88,41.48107685]
[1729091444341,6.453,154.99,154.88,3.24667685]
[1729091444541,6.453,154.99,154.86,5.82]
[1729091445234,6.453,154.99,154.86,9.01563028]
[1729091445430,29.77,154.97,154.86,9.01563028]
[1729091445634,8.606,154.96,154.86,9.01563028]
[1729091445829,29.77,154.92,154.85,1.3119]
[1729091446035,29.77,154.94,154.85,1.3119]
[1729091446036,3.2292,154.86,154.85,1.3119]
[1729091449143,3.229,154.87,154.85,1.3119]
[1729091449441,2.786,154.96,154.86,18.6]
[1729091449646,3.2285,154.9,154.87,3.2288]
[1729091450538,3.2286,154.89,154.86,24.98796822]
[1729091450844,18.6,154.94,154.86,21.75896822]
[1729091451141,3.2287,154.89,154.86,24.98806822]
[1729091452337,5.82,154.95,154.86,21.75896822]
[1729091452543,2.786,154.96,154.86,21.75896822]
[1729091452739,8.606,154.96,154.88,18.6]
[1729091452944,7.246,154.96,154.88,18.6]
[1729091453441,7.246,154.96,154.88,21.80067873]
[1729091453746,7.246,154.96,154.9,3.2282]
[1729091453747,3.2278,154.93,154.9,3.2282]
[1729091454044,7.246,154.96,154.88,27.62067873]
[1729091454838,3.228,154.92,154.89,3.2284]
[1729091456242,3.2285,154.9,154.88,27.62067873]
[1729091456440,7.246,154.96,154.88,9.02067873]
[1729091456643,7.246,154.96,154.85,7.1319]
[1729091456644,18.6,154.95,154.85,7.1319]
[1729091456947,18.6,154.93,154.86,3.17409024]
[1729091457246,5.82,154.92,154.85,1.3119]
[1729091457445,5.82,154.92,154.83,9.0497]
[1729091457446,3.2295,154.85,154.83,5.82]
[1729091457646,18.6,154.9,154.83,5.82]
[1729091457850,36.9839,154.92,154.83,5.82]
[1729091458142,36.9839,154.92,154.83,9.0497]
[1729091458851,36.9839,154.92,154.81,5.917]
[1729091459051,36.9839,154.92,154.81,2.6869]
[1729091459444,1.4039,154.92,154.84,3.2295]
[1729091459745,5.86,154.91,154.81,2.6869]
[1729091460250,3.2293,154.86,154.83,3.2296]
[1729091461352,5.86,154.91,154.83,3.2296]
[1729091461550,29.76,154.9,154.79,1.3488]
[1729091461750,36.2169,154.9,154.79,1.3488]
[1729091462058,3.2303,154.81,154.79,1.3488]
[1729091462243,5.88,154.87,154.79,1.3488]
[1729091462644,3.2301,154.82,154.79,4.5793]
[1729091464350,3.2297,154.84,154.81,3.2302]
[1729091465249,31.1639,154.92,154.79,31.1088]
[1729091465450,7.8597,154.95,154.84,29.76]
[1729091465654,5.88,154.94,154.84,29.76]
[1729091465856,3.2285,154.9,154.87,3.2288]
[1729091466153,5.88,154.94,154.88,3.19661209]
[1729091466342,5.88,154.94,154.86,1.3254]
[1729091466747,3.2289,154.87,154.86,1.3254]
[1729091466947,1.4087,154.93,154.83,5.88]
[1729091467355,31.1687,154.93,154.83,5.88]
[1729091467753,3.2295,154.85,154.83,5.88]
[1729091468253,31.1687,154.93,154.81,3.2301]
[1729091468469,31.1687,154.93,154.8,29.76]
[1729091468470,5.88,154.9,154.8,29.76]
[1729091468655,5.88,154.9,154.79,10.0203]
[1729091468656,35.64,154.9,154.79,10.0203]
[1729091469049,3.2299,154.83,154.8,3.2304]
[1729091469356,7.8645,154.93,154.8,29.76]
[1729091469557,5.88,154.92,154.8,29.76]
[1729091469767,7.8645,154.93,154.85,3.2294]
[1729091469958,7.8645,154.93,154.86,3.22095113]
[1729091469959,5.88,154.92,154.86,3.22095113]
[1729091470256,5.88,154.92,154.86,6.44995113]
[1729091470561,5.88,154.92,154.86,3.229]
[1729091470764,3.2287,154.88,154.86,3.229]
[1729091471061,3.2287,154.88,154.87,3.14925243]
[1729091471450,1.4047,154.95,154.87,3.14925243]
[1729091471666,1.4047,154.95,154.88,3.2287]
[1729091471851,1.4047,154.95,154.88,4.6723]
[1729091472052,3.2282,154.91,154.88,4.6723]
[1729091472556,3.2282,154.91,154.88,7.97625369]
[1729091473861,3.2285,154.89,154.88,4.74755369]
[1729091474565,3.2289,154.88,154.85,32.9893]
[1729091474862,1.4047,154.95,154.85,29.76]
[1729091475058,3.2284,154.9,154.87,3.2288]
[1729091475359,1.4047,154.95,154.87,3.25231047]
[1729091475663,3.2276,154.94,154.91,3.228]
[1729091476268,1.4037,155.0,154.93,3.2277]
[1729091476459,5.88,154.99,154.93,3.2277]
[1729091476657,5.88,154.99,154.91,7.28]
[1729091477065,3.2273,154.95,154.92,3.2278]
[1729091477260,5.88,154.99,154.91,7.28]
[1729091477565,1.4436,155.01,154.91,7.28]
[1729091477766,3.227,154.97,154.94,3.2274]
[1729091477969,3.227,154.97,154.95,3.17356254]
[1729091478465,1.4436,155.01,154.91,7.28]
[1729091479063,1.4436,155.01,154.91,10.5081]
[1729091479460,3.2276,154.94,154.91,10.5081]
[1729091481866,3.2278,154.93,154.91,1.4]
[1729091482369,35.62,154.98,154.89,5.86]
[1729091482562,3.2272,154.96,154.89,5.86]
[1729091482769,35.62,154.98,154.89,5.86]
[1729091483168,3.2282,154.91,154.89,5.86]
[1729091483772,35.62,154.98,154.85,5.86]
[1729091483773,3.2287,154.88,154.85,5.86]
[1729091483958,5.86,154.94,154.85,5.86]
[1729091484162,3.2284,154.9,154.85,5.86]
[1729091484361,5.86,154.94,154.85,5.86]
[1729091484760,5.86,154.94,154.87,3.2289]
[1729091485066,5.86,154.94,154.87,6.47767769]
[1729091485771,5.86,154.94,154.83,31.1309]
[1729091485969,1.3597,154.93,154.84,5.86]
[1729091486275,3.2289,154.88,154.85,3.2293]
[1729091486672,1.3597,154.93,154.85,3.2293]
[1729091487376,3.2291,154.87,154.84,9.0895]
[1729091488975,1.3597,154.93,154.84,9.0895]
[1729091489468,1.3597,154.93,154.84,5.86]
[1729091489778,18.6,154.92,154.84,5.86]
[1729091490168,3.2294,154.85,154.82,2.8288]
[1729091490871,3.2294,154.85,154.82,6.0587]
[1729091491984,3.2294,154.85,154.83,3.2297]
[1729091493474,3.2294,154.85,154.82,6.0588]
[1729091494172,3.2285,154.89,154.85,3.2293]
[1729091494373,5.78,154.92,154.86,3.23280658]
[1729091494573,5.78,154.92,154.84,18.6]
[1729091494981,24.38,154.92,154.83,3.2296]
[1729091495172,6.4564,154.91,154.82,1.4265]
[1729091495373,18.6,154.87,154.78,9.03730424]
[1729091495578,3.2303,154.81,154.78,12.26810424]
[1729091496490,3.23,154.82,154.79,21.8305]
[1729091498482,3.2302,154.81,154.79,21.8305]
[1729091498784,3.2302,154.81,154.78,12.26810424]
[1729091499385,3.2301,154.82,154.79,3.2306]
[1729091502974,18.6,154.91,154.81,18.6]
[1729091503176,5.78,154.9,154.82,1.4554]
[1729091503678,5.78,154.9,154.83,3.2297]
[1729091504080,5.78,154.9,154.83,18.6]
[1729091504289,3.229,154.87,154.84,3.2295]
[1729091505984,5.78,154.9,154.84,3.2295]
[1729091506881,3.2291,154.87,154.84,3.2295]
[1729091507079,5.78,154.9,154.82,8.6351]
[1729091507279,5.78,154.9,154.83,3.2297]
[1729091509088,3.2291,154.87,154.84,3.2295]
[1729091509486,5.78,154.9,154.82,8.6351]
[1729091509787,3.2288,154.88,154.83,3.2296]
[1729091509984,5.78,154.9,154.83,3.2296]
[1729091510586,5.78,154.9,154.82,8.6351]
[1729091510587,3.2291,154.87,154.84,3.2296]
[1729091510786,3.2291,154.87,154.82,8.6351]
[1729091511094,5.78,154.9,154.82,8.6351]
[1729091511288,3.2289,154.88,154.84,18.6]
[1729091511484,13.5951,154.93,154.84,18.6]
[1729091511687,13.5951,154.93,154.82,8.6351]
[1729091511887,18.6,154.91,154.82,8.6351]
[1729091512393,3.2287,154.89,154.82,8.6351]
[1729091512590,3.2287,154.89,154.83,18.6]
[1729091512886,18.6,154.91,154.83,18.6]
[1729091513090,3.2288,154.88,154.85,3.2292]
[1729091513292,3.2288,154.88,154.86,3.15359759]
[1729091513988,3.2288,154.88,154.86,3.2291]
[1729091514189,3.2288,154.88,154.87,3.159733]
[1729091516597,1.3597,154.93,154.85,3.2293]
[1729091516794,1.3597,154.93,154.86,3.24745114]
[1729091517193,3.2289,154.88,154.86,6.47655114]
[1729091517998,3.2286,154.89,154.87,3.2289]
[1729091518382,1.3597,154.93,154.86,3.24745114]
[1729091518606,3.228,154.92,154.89,3.2284]
[1729091519301,3.228,154.92,154.88,18.6]
[1729091519302,3.2277,154.93,154.9,3.2282]
[1729091520383,3.2277,154.93,154.91,3.2281]
[1729091520790,24.14,154.98,154.89,1.326]
[1729091520990,6.8756,154.99,154.92,3.2277]
[1729091521588,3.2269,154.97,154.92,3.2277]
[1729091521797,6.8756,154.99,154.92,3.2277]
[1729091522995,3.2273,154.96,154.93,3.2277]
[1729091523396,6.8756,154.99,154.93,3.2277]
[1729091524401,3.2273,154.95,154.93,3.2277]
[1729091524796,1.3356,154.99,154.93,3.2277]
[1729091524997,3.227,154.97,154.92,18.6]
[1729091525499,119.30527328,155.0,154.91,1.3958]
[1729091525700,3.2273,154.95,154.91,1.3958]
[1729091526294,3.2273,154.95,154.93,3.2277]
[1729091526495,100.70527328,155.0,154.92,18.6]
[1729091526802,5.54,155.02,154.94,18.6]
[1729091526998,3.2266,154.99,154.96,3.227]
[1729091527595,3.2267,154.98,154.96,3.227]
[1729091527796,3.2267,154.98,154.94,27.38040271]
[1729091528005,3.2267,154.98,154.95,3.2272]
[1729091528201,5.54,155.02,154.91,6.9358]
[1729091528202,18.6,155.0,154.91,6.9358]
[1729091528506,18.6,154.98,154.9,5.54]
[1729091528890,24.14,154.98,154.9,5.54]
[1729091529099,24.14,154.98,154.9,8.7682]
[1729091529301,24.14,154.98,154.9,3.2282]
[1729091529508,18.6,154.94,154.86,8.80446639]
[1729091529698,18.6,154.94,154.87,3.2288]
[1729091529898,18.6,154.94,154.87,3.18706046]
[1729091530093,3.2281,154.92,154.9,3.2283]
[1729091530303,3.2281,154.92,154.9,6.48280635]
[1729091530503,3.2278,154.93,154.9,3.25450635]
[1729091530803,2.8117,154.97,154.88,18.6]
[1729091530998,3.2284,154.9,154.88,3.1945487]
[1729091531199,18.6,154.96,154.87,2.854]
[1729091531708,3.2283,154.91,154.88,3.2286]
[1729091533111,2.8117,154.97,154.88,18.6]
[1729091533293,3.2278,154.93,154.9,3.2282]
[1729091533499,5.54,154.98,154.9,24.14]
[1729091533708,3.227,154.97,154.94,3.2274]
[1729091533904,3.227,154.97,154.95,3.28847753]
[1729091535304,3.227,154.97,154.95,3.2273]
[1729091535498,5.54,155.01,154.96,3.16294288]
[1729091535499,3.2267,154.98,154.96,3.16294288]
[1729091535698,2.7418,155.03,154.96,18.6]
[1729091535905,2.7418,155.03,154.97,3.2269]